Cogmind - Beta 15 *** ADVENTURER MODE // 2025.05.26 @ 05:10:13 Player: Finn Result: Destroyed by S-10 Pest with Light Assault Rifle Performance ------------- Evolutions (1) 500 Regions Visited (4) 800 Robots Destroyed (60) 300 Value Destroyed (1430) 1430 Prototype IDs (1) 20 Alien Tech Used (0) 0 Bonus (21) 21 TOTAL SCORE: 3071 Bonus ------- Follower Combat Kills 21 Cogmind --------- Core Integrity 0/400 Matter 300/300 Energy 100/100 System Corruption 1% Temperature Cool (0) Movement Core (250) Ox4 Location -9/Mines Parts ------- > --- POWER (1) -------- (None) > --- PROPULSION (4) --- (None) > --- UTILITY (2) ------ Medium Storage Unit Advanced Visual Processing Unit > --- WEAPON (2) ------- Light Assault Rifle Mace > --- INVENTORY (10) --- Light Ion Engine Improved Ion Engine Sensor Array Advanced Targeting Computer Particle Charger Propulsion Shielding Improved Light Armor Plating Shield Generator Heavy Particle Gun Rocket Launcher Peak State ------------ > --- POWER ------------ Light Angular Momentum Engine > --- PROPULSION ------- Wheel Wheel Wheel Armored Wheel > --- UTILITY ---------- Medium Storage Unit Advanced Visual Processing Unit > --- WEAPON ----------- Particle Gun Minigun > --- INVENTORY -------- Light Ion Engine Light Ion Engine Particle Charger Light Armor Plating Shield Generator Improved Assault Rifle Grenade Launcher Rocket Launcher Mace [Rating: 20] Favorites ----------- Power Light Ion Engine Engine Light Ion Engine Power Core Light Nuclear Core Propulsion Wheel Wheel Wheel Utility Medium Storage Unit Storage Medium Storage Unit Processor Advanced Visual Processing Unit Weapon Particle Gun Energy Gun Particle Gun Ballistic Gun Light Assault Rifle Launcher Rocket Launcher Special Weapon Mining Laser Impact Weapon Mace Build | -11 -10 -10 -9 -9 ------- Run | Yrd Mat Min Mat Min Slots Evolved 2 | . . . 2 . Power . | . . . . . Propulsion 2 | . . . 2 . Utility . | . . . . . Weapon . | . . . . . Parts Attached 31 | 6 7 4 14 . Power 7 | 1 2 1 3 . Engine 6 | 1 2 . 3 . Core 1 | . . 1 . . Reactor . | . . . . . Propulsion 11 | 2 2 . 7 . Treads . | . . . . . Leg . | . . . . . Wheel 11 | 2 2 . 7 . Hover . | . . . . . Flight . | . . . . . Utility 4 | 1 2 1 . . Device . | . . . . . Storage 2 | 1 1 . . . Processor 2 | . 1 1 . . Hackware . | . . . . . Protection . | . . . . . Artifact . | . . . . . Weapon 9 | 2 1 2 4 . Energy Gun 1 | . 1 . . . Energy Cannon . | . . . . . Ballistic Gun 5 | 2 . . 3 . Ballistic Cannon . | . . . . . Launcher 1 | . . 1 . . Special Weapon 1 | . . 1 . . Impact Weapon 1 | . . . 1 . Slashing Weapon . | . . . . . Piercing Weapon . | . . . . . Special Melee Weapon . | . . . . . Unidentified Prototypes 1 | . . . 1 . Corrupted Parts 1 | . . . 1 . System Corruption 1 | . . . 1 . Parts Lost 20 | . 3 1 14 2 Power 4 | . 1 . 3 . Propulsion 11 | . 1 . 8 2 Utility . | . . . . . Weapon 5 | . 1 1 3 . Highest Loss Streak 2 | . 2 1 2 1 To Critical Strikes . | . . . . . Average Backups 8 | 1 5 9 9 10 Power 2 | . 1 3 2 2 Propulsion . | . 1 2 . . Utility 2 | . 1 2 3 6 Weapon 2 | . 1 2 3 2 Tool/Special . | . . . . . Unused Backups 13 | . . . 4 9 Power 2 | . . . . 2 Propulsion . | . . . . . Utility 7 | . . . 1 6 Weapon 4 | . . . 3 1 Tool/Special . | . . . . . Average Slot Usage (%) 86 | . 96 97 79 63 Engine 7 | . 13 1 6 . Core 2 | . . 12 1 . Wheel 27 | . 26 28 29 19 Storage 12 | . 14 14 11 11 Processor 12 | . 13 14 11 11 Energy Gun 7 | . 12 14 3 . Ballistic Gun 11 | . 15 . 12 11 Launcher 1 | . . 4 1 . Impact Weapon 2 | . . . 2 11 Peak Build Rating 20 | 6 8 14 20 11 Average Rating 11 | 4 7 12 15 10 On Entrance 7 | . 6 8 14 11 Naked Turns . | . . . . . Heaviest Build 26 | 12 17 22 26 13 Greatest Support 60 | 20 20 20 60 26 Greatest Overweight (x) 2 | . 1 1 2 1 Average Overweight (x) . | . . . . . Largest Inventory Capacity 10 | 8 10 10 10 10 Average Capacity 9 | 7 9 10 10 10 Most Carried 10 | 5 9 10 10 10 Average Carried 8 | 1 5 9 9 10 Final Capacity 10 | 8 10 10 10 10 Final Carried 10 | 1 9 10 10 10 Class Distribution -------------------- 100% | Mutant Dominant Class ---------------- Mutant | -10/Materials Mutant | -10/Mines Mutant | -9/Materials Mutant | -9/Mines Resources | -11 -10 -10 -9 -9 ----------- Run | Yrd Mat Min Mat Min Matter Collected 966 | 196 177 54 529 10 Remotely . | . . . . . Salvage Created 1728 | . 431 29 1256 12 Parts 123 | . 43 3 77 . Haulers Intercepted 2 | . . . 2 . Recyclers Shooed 2 | . 1 . 1 . Parts Field Recycled . | . . . . . Retrieved Matter . | . . . . . Parts Self-Destructed . | . . . . . Prevented . | . . . . . Kills | -11 -10 -10 -9 -9 ------- Run | Yrd Mat Min Mat Min Combat Hostiles Destroyed 47 | . 12 2 33 . Melee 5 | . . . 5 . Guns 39 | . 12 2 25 . AOE 1 | . . . 1 . Classes Destroyed 7 | . 4 . 2 1 Worker 2 | . 1 . 1 . Tunneler 1 | . . . . 1 Hauler 2 | . . . 2 . Watcher 8 | . 3 . 5 . Swarmer 19 | . 6 2 11 . Grunt 20 | . 6 . 14 . Sentry 8 | . . . 8 . Best Kill Streak 7 | . 7 2 6 1 Combat Bots Only 6 | . 4 2 6 . Max Kills in Single Turn 2 | . 2 1 2 1 Gunslinging . | . . . . . Exploded 1 | . . . 1 . Melee 1 | . . . 1 . Uniques/NPCs Destroyed . | . . . . . Combat | -11 -10 -10 -9 -9 -------- Run | Yrd Mat Min Mat Min Hostile Shots Fired 318 | . 69 22 186 41 Missed 86 | . 17 6 53 10 Hits 232 | . 52 16 133 31 Projectile 232 | . 52 16 133 31 Critical Strikes 4 | . . . 4 . Damage Taken 2069 | . 463 92 1333 181 Core 494 | . 83 9 328 74 Absorbed by Shields . | . . . . . Ignored by Resistances 618 | . 139 32 384 63 Core Remaining (%) 81 | 100 . 63 . . Volleys Fired 145 | . 41 11 92 1 Largest 2 | . 2 2 2 1 Hottest 165 | . 85 165 90 20 Shots Fired 229 | . 71 12 145 1 Gun 224 | . 71 11 141 1 Cannon . | . . . . . Launcher 4 | . . . 4 . Special 1 | . . 1 . . Kinetic 158 | . 59 . 98 1 Thermal 67 | . 12 12 43 . Explosive 4 | . . . 4 . Electromagnetic . | . . . . . Robot Hit Streak 26 | . 16 3 26 4 Robot Miss Streak 3 | . 2 3 2 . Penetration Max . | . . . . . Secondary Targets 6 | . 6 . . . Max Gunslinging Chain 1 | . 1 . . . Shots Hit Robots 199 | . 52 6 139 2 Core Hits 77 | . 27 2 48 . Critical Kills 1 | . . . 1 . Critical Parts Destroyed 3 | . . . 3 . Critical Strikes 6 | . 1 . 5 . Burn 2 | . 1 . 1 . Smash 4 | . . . 4 . Melee Attacks 26 | . . . 25 1 Impact 26 | . . . 25 1 Slashing . | . . . . . Piercing . | . . . . . Sneak Attacks 1 | . . . . 1 Combat Hostiles . | . . . . . Follow-up Attacks . | . . . . . Damage Inflicted 3495 | . 572 90 2753 80 Guns 2434 | . 535 90 1801 8 Cannons . | . . . . . Explosions 260 | . . . 260 . Melee 726 | . . . 654 72 Ramming 75 | . 37 . 38 . Kinetic 1640 | . 391 . 1241 8 Thermal 794 | . 144 90 560 . Explosive 260 | . . . 260 . Electromagnetic . | . . . . . Impact 726 | . . . 654 72 Slashing . | . . . . . Piercing . | . . . . . Highest Corruption 1 | . 1 1 1 1 Average Corruption 1 | . 1 1 1 1 Corruption Purged . | . . . . . Corruption Blocked . | . . . . . Effects 8 | . 1 4 2 1 Message Errors 1 | . . 1 . . Matter Fused 5 | . . 2 2 1 Heat Flow Errors 1 | . 1 . . . Alerts 1 | . . 1 . . Overload Shots . | . . . . . Overflow Damage 178 | . . . 126 52 Projectiles . | . . . . . Explosions 6 | . . . 6 . Melee 172 | . . . 120 52 Knockbacks 3 | . 1 . 1 1 Impact 3 | . 1 . 1 1 Kinetic . | . . . . . Secondary . | . . . . . Self-Inflicted Damage 53 | . 17 . 36 . Shots 1 | . . . 1 . Rammed 12 | . 6 . 6 . Targets Rammed 12 | . 6 . 6 . Kicked . | . . . . . Crushed . | . . . . . Highest Temperature 249 | . 184 215 249 . Average Temperature 72 | . 50 96 77 . Received Heat Transfer 879 | . 267 . 600 12 Siege Activations . | . . . . . Martial Activations . | . . . . . Shielding Activations . | . . . . . Robots Disrupted . | . . . . . Combat Hostiles . | . . . . . Robots Corrupted 3 | . . . 2 1 Combat Hostiles 1 | . . . 1 . Parts Fried 2 | . . . 1 1 Impact Corruptions 8 | . . . 5 3 Robots Melted 1 | . . . 1 . Combat Hostiles 1 | . . . 1 . Parts Melted 3 | . 1 . 2 . Heat Transferred 2035 | . 407 222 1406 . Parts Sabotaged . | . . . . . Parts Stolen . | . . . . . Parts Stripped . | . . . . . Power Chain Reactions . | . . . . . Alert | -11 -10 -10 -9 -9 ------- Run | Yrd Mat Min Mat Min Maximum Alert Level 1 | . . . 1 . Low Security (%) 75 | 100 100 100 48 100 Level 1 24 | . . . 51 . Level 2 . | . . . . . Level 3 . | . . . . . Level 4 . | . . . . . Level 5 . | . . . . . High Security . | . . . . . Max Security . | . . . . . Peak Influence 300 | . 92 82 300 74 Initial 74 | . . . 3 74 Average 82 | . 26 32 145 35 Influence Increases 1434 | . 321 122 956 35 Destroy 0b10 Robot/C 1000 | . 240 100 660 . Destroy 0b10 Robot/NC 65 | . 20 . 40 5 Destroy Leader 240 | . 46 20 174 . Allied During Kill 2 | . . 2 . . Trap Triggered on 0b10 10 | . . . 10 . Disable Machine 18 | . . . 18 . Destroy Structure 39 | . . . 39 . Partial Spotted 30 | . 15 . 15 . Lose Combat Pursuer 30 | . . . . 30 Influence Decreases 1424 | . 321 110 741 252 Entered New Map 162 | . . . 9 153 Time Decay 1036 | . 301 100 556 79 Lost Part 178 | . 20 10 128 20 Purge Threat 48 | . . . 48 . Squads Dispatched 7 | . 1 1 5 . Investigation 6 | . 1 1 4 . Extermination . | . . . . . Reinforcement 1 | . . . 1 . Assault . | . . . . . Garrison . | . . . . . Intercept . | . . . . . Searches Triggered . | . . . . . Construction Impeded . | . . . . . Haulers Reinforced . | . . . . . Active Scanning Responses . | . . . . . Cargo Convoy Interrupts . | . . . . . Stealth | -11 -10 -10 -9 -9 --------- Run | Yrd Mat Min Mat Min Distress Signals 4 | . 2 . 2 . Communications Jammed . | . . . . . Distress Signals . | . . . . . Times Spotted 71 | . 15 6 42 8 Peak Tracking Total 6 | . 4 3 6 6 Tactical Retreats 2 | . . . . 2 Traps | -11 -10 -10 -9 -9 ------- Run | Yrd Mat Min Mat Min Traps Triggered 4 | . 1 . 3 . Indirectly . | . . . . . Trap Hack Attempts . | . . . . . Triggered . | . . . . . Disarmed . | . . . . . Reprogrammed 7 | . 1 . 6 . Reused 1 | . . . 1 . Traps Extracted . | . . . . . Installed . | . . . . . Triggered 1 | . . . 1 . Machines | -11 -10 -10 -9 -9 ---------- Run | Yrd Mat Min Mat Min Machines Disabled 2 | . . . 2 . Max in Single Turn 2 | . . . 2 . Machines Repaired . | . . . . . Machines Dismantled . | . . . . . Machines Sabotaged . | . . . . . Overloaded Fab Kills . | . . . . . Hacking | -11 -10 -10 -9 -9 --------- Run | Yrd Mat Min Mat Min Machines Accessed 10 | . 4 1 5 . Terminals 9 | . 4 . 5 . Fabricators . | . . . . . Repair Stations . | . . . . . Recycling Units . | . . . . . Scanalyzers . | . . . . . Garrison Access . | . . . . . Total Hacks 17 | . 4 1 12 . Successful 13 | . 4 1 8 . Failed 4 | . . . 4 . Catastrophic . | . . . . . Database Lockouts . | . . . . . Manual . | . . . . . Terminals 16 | . 4 . 12 . Fabricators . | . . . . . Repair Stations . | . . . . . Recycling Units . | . . . . . Scanalyzers . | . . . . . Garrison Access . | . . . . . Terminal Hacks 13 | . 4 1 8 . Record 7 | . 1 . 6 . Robot Analysis 1 | . 1 . . . Open Door 1 | . . 1 . . Unreport Threat 1 | . . . 1 . Reprogram Traps 2 | . 1 . 1 . Zone Layout 1 | . 1 . . . Fabricator Hacks . | . . . . . Repair Station Hacks . | . . . . . Recycling Unit Hacks . | . . . . . Scanalyzer . | . . . . . Garrison Access Hacks . | . . . . . Unauthorized Hacks . | . . . . . Terminals . | . . . . . Fabricators . | . . . . . Repair Stations . | . . . . . Recycling Units . | . . . . . Scanalyzers . | . . . . . Garrison Access . | . . . . . Data Cores Recovered . | . . . . . Used . | . . . . . Hacking Detections 3 | . . . 3 . Full Trace Events 1 | . . . 1 . Feedback Events . | . . . . . Feedback Blocked . | . . . . . Robot Schematics Acquired . | . . . . . Robots Built . | . . . . . Authchips . | . . . . . Time . | . . . . . Total Robot Build Rating . | . . . . . Part Schematics Acquired . | . . . . . Parts Built . | . . . . . Authchips . | . . . . . Time . | . . . . . Total Part Build Rating . | . . . . . Parts Repaired . | . . . . . Time . | . . . . . Parts Recycled . | . . . . . Recycled Matter . | . . . . . Retrieved Matter . | . . . . . Retrieved Components . | . . . . . Parts Scanalyzed . | . . . . . Part Schematics Acquired . | . . . . . Parts Damaged . | . . . . . Bothacking | -11 -10 -10 -9 -9 ------------ Run | Yrd Mat Min Mat Min Used RIF Installer . | . . . . . Robots Hacked . | . . . . . Non-combat . | . . . . . Combat . | . . . . . Robot Hacks Applied . | . . . . . Relay Couplers Released . | . . . . . Fabnet Peak Effective % . | . . . . . Robots Rewired . | . . . . . Allies Hacked . | . . . . . Hacks Repelled . | . . . . . Allies | -11 -10 -10 -9 -9 -------- Run | Yrd Mat Min Mat Min Total Allies 1 | . . 1 . . Largest Group 1 | . . 1 . . Highest-Rated Group 31 | . . 31 . . Highest-Rated Ally 31 | . . 31 . . Total Orders . | . . . . . Ally Attacks 6 | . . 6 . . Total Damage 64 | . . 64 . . Kills 3 | . . 3 . . Allies Corrupted . | . . . . . Allies Melted . | . . . . . Intel | -11 -10 -10 -9 -9 ------- Run | Yrd Mat Min Mat Min Active Infowar (turns) 1728 | . . 287 1263 178 Optics 1728 | . . 287 1263 178 Robot Analysis Total 1 | . 1 . . . Derelict Logs Recovered 3 | . . 2 . 1 Drone Launches . | . . . . . Drone Recoveries . | . . . . . Exploration | -11 -10 -10 -9 -9 ------------- Run | Yrd Mat Min Mat Min Turns Passed 2725 | 63 900 321 1263 178 Spaces Moved 2347 | 68 882 333 918 146 Core 13 | 13 . . . . Treads . | . . . . . Legs . | . . . . . Wheels 2334 | 55 882 333 918 146 Hover . | . . . . . Flight . | . . . . . Fastest Speed 50 | 50 80 80 80 90 Average Speed 87 | 74 81 84 94 91 Slowest Speed 120 | 80 95 95 120 95 Overloaded Moves . | . . . . . Propulsion Burnouts . | . . . . . Robots Hopped . | . . . . . Potential Cave-ins . | . . . . . Cave-ins Triggered . | . . . . . Exploration Rate (%) 59 | 4 93 74 80 47 Regions Visited 4 Branch Regions 2 Pre-discovered Areas 1 | . . 1 . . Known Exits Taken . | . . . . . Unknown Exits Taken 4 | 1 1 1 1 . Scrap Searched 2 | . . 2 . . Spaces Dug 1 | . . . 1 . Terrain Destroyed 33 | . . . 33 . Melee 1 | . . . 1 . Projectile . | . . . . . AOE 32 | . . . 32 . Terrain Rammed . | . . . . . Walls Destroyed . | . . . . . Machines Disabled . | . . . . . Actions | -11 -10 -10 -9 -9 --------- Run | Yrd Mat Min Mat Min Total 2762 | 79 1000 358 1137 188 Wait 151 | . 53 3 55 40 Move 2343 | 67 881 332 917 146 Hop . | . . . . . Pick Up 37 | 6 12 4 15 . Fast Attach 6 | 1 . 1 4 . Attach 19 | 5 4 1 9 . Detach 1 | . . 1 . . Swap 13 | . 3 2 8 . Drop 9 | . . 3 6 . Fire 145 | . 41 11 92 1 Melee 26 | . . . 25 1 Ram 12 | . 6 . 6 . Kick . | . . . . . Crush . | . . . . . Escape Stasis . | . . . . . Rewire . | . . . . . Trap . | . . . . . Miscellaneous . | . . . . . Route ------- -11/Scrapyard -10/Materials (discovered 4 exits: *Mat x3 / *Min) -10/Mines -9/Materials (discovered 4 exits: *Mat x3 / [*Min]) -9/Mines (discovered 1 exit: Mat) History --------- Turn | Location | Event 6 | -11/Scrapyard | Discovered new exit (range 16) 64 | -11/Scrapyard | Entered Materials 257 | -10/Materials | Discovered new exit (range 9) 317 | -10/Materials | Build established: Mutant 531 | -10/Materials | Discovered new exit (range 14) 811 | -10/Materials | Discovered new exit (range 5) 835 | -10/Materials | Discovered new exit (range 15) 964 | -10/Materials | Entered Mines 967 | -10/Mines | Received a Mining Laser from a helpful Derelict 987 | -10/Mines | Met a Derelict shopkeep closing up shop 989 | -10/Mines | Learned location of Mines (-9) 1179 | -10/Mines | Received a Rocket Launcher from a helpful Derelict 1196 | -10/Mines | Learned 2 Materials zone layouts 1196 | -10/Mines | Discovered new exit (range 5) 1285 | -10/Mines | Entered Materials 1285 | -9/Materials | Evolved 2 slots: Propulsion x2 1593 | -9/Materials | Discovered new exit (range 4) 2055 | -9/Materials | Discovered new exit (range 20) 2272 | -9/Materials | Core integrity fell below 50% 2305 | -9/Materials | Discovered new exit (range 5) 2466 | -9/Materials | Core integrity fell below 20% 2494 | -9/Materials | Discovered new exit (range 20) 2548 | -9/Materials | Entered Mines 2671 | -9/Mines | Identified exit to Materials 2726 | -9/Mines | Destroyed by S-10 Pest with Light Assault Rifle Last Messages --------------- 02510_ System corrupted: Matter fused (-10). 02511_ Acquired Prototype Energy Gun. LOCATION=UNKNOWN GOAL=ESCAPE 02552_ System corrupted: Matter fused (-5). 02671_ Acquired derelict log, extracted data. Loading 1 Mines exit... 02674_ Com. Wheel destroyed. 02674_ Sneak attack on T-07 Excavator. 02674_ Destroyed Seismic Detector. 02674_ Destroyed Mining Laser. 02674_ Destroyed Imp. Terrain Scanner. 02674_ T-07 Excavator system corrupted by crushing effect. 02674_ T-07 Excavator knocked back. 02675_ T-07 Excavator system terminally corrupted. 02675_ Lgt. Ion Engine fried. 02677_ Acquired 10 matter. 02726_ Wheel destroyed. Map ----- +----------------------------------------------------+ | ??# ##?# #???# #??? | | ??# ##??# #???##### #??? | | ??# #???########### #???????# #??# | | ??# #???????# ##??? #???????# #??# | | ??# ######?? ##???????????# #### | | ??# #?? #???????????# | | ??# ### #???????????###### | | ??###### ## #?????????????????# | | ?????## #??????????????????# | | ?????# ##????????????????# | | ?????# #????????????????# | | ?????# #????????????????## | | ????## ##?????????????????# | | ???## g ##??????????????????? | | ??## ##??????????????????? | | ??# ## #??????????????????? | | ??# #### #??????????????????? | | ??# #?## ##??????????????????? | | ??## ## #???????????????????? | | ???## ls ##???????????????????? | | ????## ##????????????????????? | | ?????## s #?????????????????????? | | ??????## ss##?????????????????????? | | ???????## #??????????????????????? | | ????????## #??????????????????????? | | ?????????##@#??????????????????????? | | ??????????###??????????????????????? | | ???????????????????????????????????? | | ???????????????????????????????????? | | ???????????????????????????????????? | | ???????????????????????????????????? | | ???????????????????????????????????? | | ???????????????????????????????????? | | ???????????????????????????????????? | | ???????????????????????????????????? | | ???????????????????????????????????? | | ???????????????????????????????????? | | ???????????????????????????????????? | | ???????????????????????????????????? | | ???????????????????????????????????? | | ???????????????????????????????????? | | ???????????????????????????????????? | | ???????????????????????????????????? | | ???????????????????????????????????? | | ???????????????????????????????????? | | ???????????????????????????????????? | | ???????????????????????????????????? | | ???????????????????????????????????? | | ???????????????????????????????????? | | ???????????????????????????????????? | +----------------------------------------------------+ Best States ------------- Heat Dissipation 28 Energy Generation 18 Energy Capacity 250 Matter Stores 300 Matter Capacity 300 Sight Range 20 Terrain Scan Density 10 Resistance: KI 20 Resistance: TH 20 Resistance: EX 20 Resistance: EM 20 Resistance: I 20 Resistance: S 20 Resistance: P 20 Evasion (%) 50 Targeting Accuracy 5 Offensive Hacking 10 Item Schematics ----------------- None Robot Schematics ------------------ None Fabricated ------------ Nothing Repaired ---------- Nothing Alien Tech Used ----------------- None Achievements -------------- None Challenges ------------ None Game ------ Seed VoltaicMultitargetingCutter Manual? 0 Play Time 00:26:41 Cumulative 8.3 hours Start 2025.05.26 @ 04:44:27 End 2025.05.26 @ 05:10:13 Sessions 1 Manual Loads 0 Difficulty Adventurer Special Mode None Game No. 15 Rogue 0 Adventurer 13 Explorer 2 Win Type - Total 0 Types 0/0/0/0/0/0/0/0/0/0 Lore% 4 Gallery% 14 Achievement% 15 Wizard Run 0 Options --------- Layout 1 ASCII 0 Keyboard 0 Movement Mouse Keybinds 0 Fullscreen 1 Font 24/Smallcaps Map View 50x35 Zoom Use 0% Tactical HUD 1 Map Filters NONE Filters NONE Steam 1 RUN: 4ccdd839-e92a-4bd7-b4f7-1e91a59c98e6